bitfinex-derivatives/quotes_BTCF0:USTF0_20250805
["timestamp","ask_amount","ask_price","bid_price","bid_amount"]
[1754405195898,0.2267789,112840.0,112830.0,0.5400646]
[1754405196094,0.3788989,112840.0,112830.0,0.1772646]
[1754405196404,0.3779146,112830.0,112820.0,0.8504003]
[1754405197003,0.3180546,112830.0,112820.0,0.1803203]
[1754405197203,0.3180546,112830.0,112820.0,0.8504003]
[1754405197204,0.3779146,112830.0,112820.0,0.8504003]
[1754405197606,0.7397146,112830.0,112820.0,0.8524003]
[1754405197899,0.3789146,112830.0,112820.0,0.8524003]
[1754405198109,0.7397146,112830.0,112820.0,0.8524003]
[1754405198403,0.7397146,112830.0,112820.0,0.8494003]
[1754405198604,0.7407146,112830.0,112820.0,0.8514003]
[1754405199503,0.3799146,112830.0,112820.0,0.8514003]
[1754405200103,0.3799146,112830.0,112820.0,0.8504003]
[1754405202604,0.2277944,112830.0,112820.0,0.8504003]
[1754405202804,0.2277944,112830.0,112820.0,1.2132003]
[1754405203205,0.05053,112830.0,112820.0,1.2132003]
[1754405203505,0.05053,112830.0,112790.0,0.53812]
[1754405203506,0.2701884,112800.0,112790.0,0.53812]
[1754405203706,0.1329751,112810.0,112800.0,0.1773115]
[1754405203906,0.04853,112810.0,112800.0,0.5381115]
[1754405204105,0.1772958,112810.0,112800.0,0.6287643]
[1754405204307,0.2701434,112820.0,112810.0,0.1792957]
[1754405204501,0.2258227,112820.0,112810.0,1.03829001]
[1754405204704,0.2258227,112820.0,112810.0,1.09735931]
[1754405205005,0.2258227,112820.0,112810.0,0.92006361]
[1754405205205,0.2258257,112810.0,112800.0,1.47539379]
[1754405205398,0.3779457,112810.0,112800.0,0.66996]
[1754405205604,0.3779614,112800.0,112790.0,0.004]
[1754405205806,0.3779614,112800.0,112790.0,0.67392]
[1754405206107,0.7387614,112800.0,112790.0,0.67392]
[1754405206507,0.7387614,112800.0,112790.0,0.8512472]
[1754405206708,0.3779614,112800.0,112790.0,1.2080472]
[1754405206908,0.3779614,112800.0,112790.0,0.8472472]
[1754405207613,0.3779614,112800.0,112790.0,0.8482472]
[1754405207614,0.3819614,112800.0,112790.0,0.8482472]
[1754405207805,0.3221014,112800.0,112790.0,0.8482472]
[1754405208203,0.2258414,112800.0,112790.0,1.76531081]
[1754405208402,0.001,112810.0,112800.0,0.1773117]
[1754405208607,0.2701398,112820.0,112810.0,0.178296]
[1754405208813,0.5865862,112840.0,112830.0,0.1772646]
[1754405209007,0.2257789,112840.0,112830.0,1.40536821]
[1754405209308,0.64585,112850.0,112830.0,1.40536821]
[1754405209309,0.3587089,112850.0,112840.0,0.1772489]
[1754405209610,0.4509689,112850.0,112840.0,0.73451251]
[1754405209814,0.5108289,112850.0,112840.0,0.1772489]
[1754405210211,0.3778989,112840.0,112830.0,0.2215729]
[1754405210411,0.3778989,112840.0,112830.0,0.8914129]
[1754405210709,0.2257789,112840.0,112830.0,1.80947651]
[1754405210900,0.3143915,112850.0,112840.0,0.1772489]
[1754405211104,0.3143915,112850.0,112840.0,0.73451251]
[1754405211305,0.1772489,112840.0,112830.0,1.81047741]
[1754405211511,0.2256389,112840.0,112830.0,1.44867741]
[1754405211715,0.2256389,112840.0,112830.0,1.80947741]
[1754405211906,0.2256389,112840.0,112830.0,1.44867741]
[1754405212208,0.3730289,112840.0,112830.0,0.8470201]
[1754405212408,0.3790289,112840.0,112830.0,0.8480201]
[1754405212811,0.3750289,112840.0,112830.0,0.8480201]
[1754405213009,0.3780289,112840.0,112830.0,0.8490201]
[1754405213215,0.2306389,112840.0,112830.0,1.2098201]
[1754405213411,0.2306389,112840.0,112830.0,1.40728371]
[1754405213905,0.2306389,112840.0,112830.0,1.40624371]
[1754405214113,0.2306389,112840.0,112830.0,1.76804371]
[1754405214815,0.005,112840.0,112830.0,1.76804371]
[1754405215012,0.005,112840.0,112830.0,2.24529171]
[1754405215208,0.004,112840.0,112830.0,2.24529171]
[1754405216014,0.04839,112860.0,112830.0,2.24529171]
[1754405216015,1.7255919,112870.0,112860.0,0.1772167]
[1754405216218,1.7255919,112870.0,112860.0,1.76488031]
[1754405216912,1.8138919,112870.0,112860.0,1.2076167]
[1754405217106,1.8729819,112870.0,112860.0,1.2076167]
[1754405217916,1.677201,112870.0,112860.0,1.76488031]
[1754405218212,1.5,112870.0,112860.0,1.76488031]
[1754405218411,1.725591,112870.0,112860.0,1.76488031]
[1754405218612,1.814891,112870.0,112860.0,1.76888031]
[1754405218809,1.873981,112870.0,112860.0,0.5420567]
[1754405219013,1.874981,112870.0,112860.0,0.5450567]
[1754405219220,1.874981,112870.0,112860.0,0.8536967]
[1754405219817,1.814891,112870.0,112860.0,1.77076031]
[1754405220013,1.726591,112870.0,112860.0,1.10132031]
[1754405220318,1.7265913,112870.0,112860.0,1.77072031]
[1754405220514,1.54939,112870.0,112860.0,1.77072031]
[1754405220720,1.501,112870.0,112860.0,1.77072031]
[1754405221122,1.7265913,112870.0,112860.0,1.77064031]
[1754405221319,1.7265913,112870.0,112860.0,0.5440567]
[1754405221519,1.8739813,112870.0,112860.0,1.2133767]
[1754405221716,1.8729813,112870.0,112860.0,1.2093767]
[1754405222020,1.8739813,112870.0,112860.0,1.2123767]
[1754405222414,1.7265913,112870.0,112860.0,1.2123767]
[1754405222615,1.7265913,112870.0,112860.0,1.76964031]
[1754405222817,1.8148913,112870.0,112860.0,1.76964031]
[1754405223019,1.8148913,112870.0,112860.0,1.76864031]
[1754405223217,1.8739813,112870.0,112860.0,1.76864031]
[1754405223411,1.8739813,112870.0,112860.0,1.2113767]
[1754405223820,1.8739813,112870.0,112860.0,1.2112967]
[1754405224020,1.8739813,112870.0,112860.0,0.8504567]
[1754405224416,1.54939,112870.0,112860.0,1.76852031]
[1754405224921,1.7265912,112870.0,112860.0,1.76752031]
[1754405225122,1.7275912,112870.0,112860.0,1.76952031]
[1754405225424,1.8749812,112870.0,112860.0,0.8514167]
[1754405225720,1.8749812,112870.0,112860.0,1.2121767]
[1754405225928,1.55039,112870.0,112860.0,1.76944031]
[1754405226221,1.8749812,112870.0,112860.0,1.10032031]
[1754405226518,1.8158912,112870.0,112860.0,1.76944031]
[1754405226725,1.8158912,112870.0,112860.0,1.76940031]
[1754405226925,1.8749812,112870.0,112860.0,1.76940031]
[1754405227421,1.8749812,112870.0,112860.0,0.5430567]
[1754405227622,1.8749812,112870.0,112860.0,1.76932031]
[1754405229028,1.7275912,112870.0,112860.0,1.2120567]
[1754405229217,1.7275912,112870.0,112860.0,1.76928031]
[1754405229416,1.55039,112870.0,112860.0,1.76928031]
[1754405229621,1.55039,112870.0,112860.0,1.10032031]
[1754405229821,1.55039,112870.0,112860.0,1.76924031]
[1754405230132,1.502,112870.0,112860.0,1.76924031]
[1754405230523,1.55039,112870.0,112860.0,1.76924031]
[1754405230824,1.55039,112870.0,112860.0,1.76920031]
[1754405231524,1.8749812,112870.0,112860.0,1.2118967]
[1754405232222,1.8749812,112870.0,112860.0,0.5430567]
[1754405232428,1.8749812,112870.0,112860.0,0.8510567]
[1754405232627,1.8749812,112870.0,112860.0,0.1822567]
[1754405232822,1.8749812,112870.0,112860.0,0.5430567]
[1754405233026,1.8749812,112870.0,112860.0,1.76908031]
[1754405233218,1.69778,112870.0,112860.0,1.76908031]
[1754405233422,1.8749813,112870.0,112860.0,1.76908031]
[1754405233628,1.8749813,112870.0,112860.0,0.8510167]
[1754405233823,1.8749813,112870.0,112860.0,1.2118167]
[1754405234328,1.8749813,112870.0,112860.0,1.76908031]
[1754405234529,1.69778,112870.0,112860.0,1.10032031]
[1754405234729,1.55039,112870.0,112860.0,1.76904031]
[1754405234921,0.55145614,112870.0,112860.0,1.94624031]
[1754405235128,0.14739,112910.0,112900.0,0.1771545]
[1754405235324,0.14739,112910.0,112900.0,0.8458345]
[1754405235522,0.3245289,112910.0,112900.0,0.8458345]
[1754405235719,0.3729189,112910.0,112900.0,0.8458345]
[1754405236523,0.3759189,112910.0,112900.0,0.8468345]
[1754405236725,0.3789189,112910.0,112900.0,0.8478345]
[1754405239330,0.3789189,112910.0,112900.0,0.1791545]
[1754405239526,1.29698251,112910.0,112900.0,0.8475945]
[1754405239835,1.29698251,112910.0,112900.0,0.67044]
[1754405240329,1.29498251,112910.0,112900.0,0.66944]
[1754405240734,0.7377189,112910.0,112900.0,0.66944]
[1754405241030,1.29498251,112910.0,112900.0,0.66944]
[1754405241431,0.7377189,112910.0,112900.0,0.8465945]
[1754405241821,0.3769189,112910.0,112900.0,0.8465945]
[1754405242628,0.14069,112910.0,112900.0,0.8465945]
[1754405242934,0.3776988,112910.0,112900.0,0.8465945]
[1754405243922,0.3766988,112910.0,112900.0,0.1781545]
[1754405244231,0.3766988,112910.0,112900.0,0.8483545]
[1754405244428,0.19956,112910.0,112900.0,0.8483545]
[1754405244933,0.19956,112910.0,112900.0,1.76441811]
[1754405244934,0.05139,112910.0,112900.0,1.76441811]
[1754405245130,0.2285278,112910.0,112900.0,1.2071545]
[1754405245327,0.3782378,112910.0,112900.0,0.8473545]
[1754405245531,0.93550141,112910.0,112900.0,0.8472345]
[1754405245731,0.3782378,112910.0,112900.0,0.8472345]
[1754405246036,0.7390378,112910.0,112900.0,0.002]
[1754405246233,1.29630141,112910.0,112900.0,0.8472335]
[1754405246632,1.29630141,112910.0,112900.0,0.8462335]
[1754405246932,0.3792378,112910.0,112900.0,0.8492335]
[1754405247335,0.3802378,112910.0,112900.0,0.8492335]
[1754405247537,0.3802378,112910.0,112900.0,1.2100335]
[1754405247730,0.2275278,112910.0,112900.0,1.2080335]
[1754405248126,0.3792378,112910.0,112900.0,1.2080335]
[1754405248432,0.3193678,112910.0,112900.0,1.2080335]
[1754405248628,0.05039,112910.0,112900.0,1.2090335]
[1754405249032,0.04939,112910.0,112900.0,1.76729711]
[1754405249232,0.001,112910.0,112900.0,1.2100335]
[1754405249527,0.001,112910.0,112900.0,1.76729711]
[1754405249830,0.2689343,112940.0,112920.0,0.1771221]
[1754405250032,0.14056,112940.0,112930.0,1.2057864]
[1754405250226,0.2258108,112940.0,112930.0,1.27670127]
[1754405250425,0.04872,112940.0,112930.0,1.83396488]
[1754405250637,0.2258108,112940.0,112930.0,1.83396488]
[1754405250830,0.2258108,112940.0,112930.0,1.27670127]
[1754405251231,0.2258108,112940.0,112930.0,1.27658127]
[1754405251629,0.2268108,112940.0,112930.0,1.27658127]
[1754405251833,0.001,112940.0,112930.0,1.83384488]
[1754405252527,0.001,112940.0,112930.0,2.31194088]
[1754405252528,0.003,112940.0,112930.0,2.31194088]
[1754405252731,0.003,112940.0,112930.0,2.33355635]
[1754405252935,0.04872,112970.0,112960.0,0.1770594]
[1754405253136,0.06952548,112970.0,112960.0,1.76280301]
[1754405253540,0.24656928,112970.0,112960.0,1.2055394]
[1754405254128,1.44913529,112970.0,112960.0,0.001]
[1754405254329,0.93613598,112970.0,112960.0,0.66856]
[1754405254531,0.93613598,112970.0,112960.0,0.8456198]
[1754405255135,0.93613598,112970.0,112960.0,0.1780598]
[1754405255341,0.93613598,112970.0,112960.0,0.8455398]
[1754405255538,1.49339959,112970.0,112960.0,0.001]
[1754405255738,1.49439959,112970.0,112960.0,0.66948]
[1754405255940,1.49439959,112970.0,112960.0,0.8455396]
[1754405256535,1.97144759,112970.0,112960.0,0.52268]
[1754405256842,1.41518398,112970.0,112960.0,0.52368]
[1754405257042,1.97244759,112970.0,112960.0,0.52368]
[1754405257336,0.93813598,112970.0,112960.0,0.7007396]
[1754405257536,0.93813598,112970.0,112960.0,0.7929996]
[1754405257743,0.5565305,112970.0,112960.0,0.7929996]
[1754405257942,0.5122662,112970.0,112960.0,0.7929996]
[1754405258141,0.8730662,112970.0,112960.0,0.7929996]
[1754405258342,0.8730662,112970.0,112960.0,0.7007396]
[1754405258539,1.43032981,112970.0,112960.0,0.7007396]
[1754405258740,1.45311698,112970.0,112960.0,0.001]
[1754405258943,0.3775052,112950.0,112940.0,1.4467174]
[1754405259143,0.7383052,112950.0,112940.0,1.5389774]
[1754405259336,0.7402851,112970.0,112960.0,0.1780596]
[1754405259535,0.7412851,112970.0,112960.0,0.9375996]
[1754405260240,0.7402851,112970.0,112960.0,0.9375996]
[1754405260534,0.3794851,112970.0,112960.0,0.9375996]
[1754405260740,0.2277638,112970.0,112960.0,1.3445796]
[1754405261341,0.002,112970.0,112960.0,1.3445796]
[1754405261543,0.48771172,112980.0,112970.0,0.1770438]
[1754405261544,0.4659892,112980.0,112970.0,0.1770438]
[1754405261745,0.377472,112980.0,112970.0,0.3154838]
[1754405262446,0.377472,112980.0,112970.0,0.2693038]
[1754405262637,1.02325561,112980.0,112960.0,0.4955873]
[1754405262846,1.22788601,112980.0,112970.0,0.9364238]
[1754405263045,1.22888601,112980.0,112970.0,0.9374238]
[1754405263244,1.22888601,112980.0,112970.0,0.8451638]
[1754405263245,0.8720524,112980.0,112970.0,0.8451638]
[1754405263446,1.42931601,112980.0,112970.0,0.8451638]
[1754405263648,0.8720524,112980.0,112970.0,0.8451638]
[1754405263944,1.45009774,112980.0,112970.0,0.001]
[1754405264144,1.45009774,112980.0,112970.0,0.66804]
[1754405264443,1.45009774,112980.0,112970.0,0.66904]
[1754405264647,0.1770752,112950.0,112940.0,1.4909857]
[1754405264840,0.3775052,112950.0,112940.0,2.2502057]
[1754405265038,0.3775052,112950.0,112940.0,2.1616623]
[1754405265741,0.3775052,112950.0,112940.0,2.1631923]
[1754405266139,0.7393052,112950.0,112940.0,2.1681523]
[1754405266338,1.29656881,112950.0,112940.0,1.89728]
[1754405266545,1.29656881,112950.0,112940.0,2.0743709]
[1754405266750,0.7393052,112950.0,112940.0,2.0743709]
[1754405266951,0.7393052,112950.0,112940.0,2.1666309]
[1754405267449,0.3785052,112950.0,112940.0,2.2143409]
[1754405268044,0.7393052,112950.0,112940.0,2.2143409]
[1754405268540,0.7393052,112950.0,112940.0,2.1681609]
[1754405268945,0.20243,112950.0,112940.0,2.2142209]
[1754405269151,0.05072,112950.0,112940.0,2.2142209]
[1754405269548,0.04972,112950.0,112940.0,2.2112209]
[1754405269747,0.04972,112950.0,112940.0,2.46248451]
[1754405269748,0.001,112950.0,112940.0,2.46248451]
[1754405269956,0.001,112950.0,112940.0,3.12924451]
[1754405270255,0.04872,112970.0,112960.0,0.1770584]
[1754405270455,0.20043,112980.0,112970.0,0.3170127]
[1754405270652,0.14056,112980.0,112970.0,0.3170127]
[1754405270858,0.465958,112990.0,112980.0,0.316997]
[1754405271053,0.465958,112990.0,112980.0,0.75894]
[1754405271256,0.377457,112980.0,112970.0,0.09226]
[1754405271462,0.377457,112980.0,112970.0,0.75894]
[1754405271855,0.93472061,112980.0,112970.0,0.75894]
[1754405272154,1.29552061,112980.0,112970.0,0.66668]
[1754405272355,0.1770427,112970.0,112960.0,0.09008]
[1754405272554,0.1770427,112970.0,112960.0,0.75668]
[1754405272555,0.7292927,112970.0,112960.0,0.75668]
[1754405273058,0.7292927,112970.0,112960.0,0.6666]
[1754405273252,0.3684927,112970.0,112960.0,0.8436584]
[1754405273462,0.3684927,112970.0,112960.0,0.9337384]
[1754405273960,0.3694927,112970.0,112960.0,0.9347384]
[1754405274160,0.3694927,112970.0,112960.0,0.9358684]
[1754405274356,0.2247527,112970.0,112960.0,0.9814184]
[1754405274558,0.001,112970.0,112960.0,1.23288201]
[1754405274759,0.001,112970.0,112960.0,1.89936201]
[1754405275061,0.001,112970.0,112960.0,1.3420984]
[1754405275263,0.001,112970.0,112960.0,1.89936201]
[1754405275653,0.4493017,113000.0,112990.0,0.1770114]
[1754405275654,0.804152,113000.0,112990.0,0.1770114]
[1754405275855,0.862012,113000.0,112990.0,0.75761]
[1754405276053,0.862012,113000.0,112990.0,0.9346214]
[1754405276260,0.83673864,113010.0,113000.0,0.2670758]
[1754405276470,0.85756307,113010.0,113000.0,0.2670758]
[1754405276654,1.41482668,113010.0,113000.0,0.09008]
[1754405276857,0.3684458,113000.0,112990.0,0.9788585]
[1754405277056,0.3608,113010.0,113000.0,0.1769958]
[1754405277360,0.8177048,113020.0,113010.0,0.2681902]
[1754405277561,0.8177048,113020.0,113010.0,0.9345102]
[1754405278164,0.8177048,113020.0,113010.0,0.9800602]
[1754405278368,0.7734622,113020.0,113010.0,0.9800602]
[1754405278667,0.2236745,113020.0,113010.0,0.9800602]
[1754405279368,0.6729424,113030.0,113020.0,0.240689]
[1754405279571,0.78062991,113030.0,113020.0,0.240689]
[1754405279768,0.83848991,113030.0,113020.0,0.240689]
[1754405280068,0.8176824,113030.0,113020.0,0.0181745]
[1754405280264,0.3684145,113020.0,113010.0,0.002]
[1754405280465,0.2356989,113000.0,112970.0,0.38178]
[1754405280665,0.3684772,112980.0,112970.0,0.02098]
[1754405280972,0.8177948,112980.0,112970.0,0.1770429]
[1754405281166,0.1770428,112970.0,112960.0,0.3510376]
[1754405281363,0.8620675,112980.0,112970.0,0.02198]
[1754405281564,0.3684928,112970.0,112960.0,0.2169599]
[1754405281766,0.3684928,112970.0,112960.0,0.8829199]
[1754405281964,0.3684928,112970.0,112960.0,0.1770474]
[1754405282170,0.3685086,112960.0,112950.0,1.4679889]
[1754405282370,0.3685086,112960.0,112950.0,2.1339089]
[1754405282863,0.13359,112960.0,112950.0,2.1794589]
[1754405283064,0.5378462,112970.0,112960.0,0.1770585]
[1754405283258,0.6714362,112970.0,112960.0,0.02198]
[1754405283572,0.3705085,112960.0,112950.0,1.4247284]
[1754405283864,0.3705085,112960.0,112950.0,2.0906142]
[1754405284059,0.1770585,112960.0,112950.0,2.1351642]
[1754405284260,0.2237685,112960.0,112950.0,2.1351642]
[1754405284472,0.4590323,112970.0,112960.0,0.1770585]
[1754405284667,0.4590323,112970.0,112960.0,0.1990385]
[1754405284965,0.2700283,112970.0,112960.0,0.2445885]
[1754405285175,0.4147683,112970.0,112960.0,0.8448986]
[1754405285370,0.4147683,112970.0,112960.0,0.66784]
[1754405285569,0.3705052,112970.0,112960.0,0.8668786]
[1754405285774,0.002,112970.0,112960.0,1.83049221]
[1754405286272,0.002,112970.0,112960.0,1.82849221]
[1754405286472,0.002,112970.0,112960.0,1.82949221]
[1754405287265,0.15567,112990.0,112980.0,0.1770273]
[1754405287471,0.2859717,112990.0,112980.0,0.2445573]
[1754405287668,0.2799694,112980.0,112960.0,0.4503288]
[1754405287971,0.177043,112970.0,112960.0,0.2236058]
[1754405288172,0.729293,112970.0,112960.0,0.8657158]
[1754405288568,0.368493,112970.0,112960.0,0.8657158]
[1754405288768,0.368493,112970.0,112960.0,0.9122658]
[1754405288970,0.368493,112970.0,112960.0,0.07053]
[1754405289171,0.368493,112970.0,112960.0,0.69066]
[1754405289368,0.370493,112970.0,112960.0,0.02498]
[1754405289570,1.28855661,112970.0,112960.0,0.003]
[1754405289765,1.28855661,112970.0,112960.0,0.6686]
[1754405289968,1.28755661,112970.0,112960.0,0.6686]
[1754405290174,0.730293,112970.0,112960.0,0.6686]
[1754405290470,0.730293,112970.0,112960.0,0.6676]
[1754405290973,0.730293,112970.0,112960.0,0.002]
[1754405291176,1.28755661,112970.0,112960.0,0.002]
[1754405291564,1.28755661,112970.0,112960.0,0.001]
[1754405291966,0.224753,112970.0,112960.0,0.8655586]
[1754405292276,0.311633,112970.0,112960.0,0.73401]
[1754405292472,0.730293,112970.0,112960.0,0.68846]
[1754405292769,0.371493,112970.0,112960.0,0.8665186]
[1754405292972,0.371493,112970.0,112960.0,0.06953]
[1754405293174,0.371493,112970.0,112960.0,0.68946]
[1754405293375,0.732293,112970.0,112960.0,0.66648]
[1754405293566,0.733293,112970.0,112960.0,0.66648]
[1754405293766,0.733293,112970.0,112960.0,0.66644]
[1754405293976,1.29055661,112970.0,112960.0,0.66644]
[1754405294277,0.733293,112970.0,112960.0,0.66644]
[1754405294471,0.729293,112970.0,112960.0,0.66644]
[1754405294773,0.369493,112970.0,112960.0,0.66644]
[1754405294975,0.730293,112970.0,112960.0,0.66644]
[1754405295170,0.731293,112970.0,112960.0,0.66744]
[1754405295476,0.731293,112970.0,112960.0,0.002]
[1754405295477,1.28855661,112970.0,112960.0,0.002]
[1754405295675,1.28855661,112970.0,112930.0,0.6497042]
[1754405295676,0.1771056,112930.0,112920.0,0.40306535]
[1754405295867,0.3685556,112930.0,112920.0,0.70766535]
[1754405296069,0.3685556,112930.0,112920.0,0.04226535]
[1754405296375,0.74796801,112930.0,112920.0,0.70766535]
[1754405296575,0.1771213,112920.0,112910.0,1.22464]
[1754405296769,0.92583491,112920.0,112910.0,1.22464]
[1754405296965,1.28663491,112920.0,112910.0,1.22464]
[1754405297271,0.3686497,112870.0,112860.0,4e-05]
[1754405297570,1.64751331,112870.0,112860.0,4e-05]
[1754405297972,1.0902497,112870.0,112860.0,0.09012]
[1754405298177,0.1772155,112860.0,112850.0,0.05878]
[1754405298479,0.3686969,112840.0,112830.0,0.72418]
[1754405298775,1.28676051,112840.0,112830.0,4e-05]
[1754405298973,1.64756051,112840.0,112830.0,0.6654]
[1754405299275,1.0902969,112840.0,112830.0,4e-05]
[1754405299469,1.64756051,112840.0,112830.0,4e-05]
[1754405300270,1.28676051,112840.0,112830.0,4e-05]
[1754405300475,1.64756051,112840.0,112830.0,4e-05]
[1754405300776,1.0902969,112840.0,112830.0,0.6656]
[1754405301079,1.0902969,112840.0,112830.0,0.6666]
[1754405301264,0.9455569,112840.0,112830.0,0.75668]
[1754405301471,1.0334369,112840.0,112830.0,0.81646]
[1754405301873,1.0888069,112840.0,112830.0,0.81646]
[1754405302178,1.0888069,112840.0,112830.0,0.75784]
[1754405302968,0.1782469,112840.0,112830.0,0.1956]
[1754405303171,0.001,112840.0,112830.0,1.0385826]
[1754405303574,0.1782469,112840.0,112830.0,1.0385826]
[1754405303775,0.7367269,112840.0,112830.0,0.81432]
[1754405304081,0.7367269,112840.0,112830.0,0.66776]
[1754405304770,0.7367269,112840.0,112830.0,0.00204]
[1754405304972,0.7367269,112840.0,112830.0,0.75964]
[1754405305679,0.6813569,112840.0,112830.0,0.3232626]
[1754405305875,0.6813569,112840.0,112830.0,1.0401826]
[1754405306279,0.6813569,112840.0,112830.0,0.86292]
[1754405306579,0.7367269,112840.0,112830.0,0.67144]
[1754405306780,0.7367269,112840.0,112830.0,0.67044]
[1754405307376,0.6813569,112840.0,112830.0,1.0386627]
[1754405307678,0.2257269,112840.0,112830.0,1.0376627]
[1754405307985,0.5875269,112840.0,112830.0,1.0386627]
[1754405308283,0.5875269,112840.0,112830.0,1.53690526]
[1754405308284,0.1782469,112840.0,112830.0,1.53690526]
[1754405308673,0.2267269,112840.0,112830.0,0.8144]
[1754405308876,0.7367269,112840.0,112830.0,0.08852]
[1754405309076,0.7367269,112840.0,112830.0,0.67036]
[1754405310476,0.7367269,112840.0,112830.0,0.00104]
[1754405310676,1.23496946,112840.0,112830.0,0.00104]
[1754405310878,0.1772941,112810.0,112800.0,0.05648]
[1754405311176,1.0965741,112810.0,112800.0,0.81308]
[1754405311478,0.1772885,112820.0,112800.0,1.0373898]
[1754405311479,0.5422456,112820.0,112800.0,1.0373898]
[1754405311681,0.5824096,112820.0,112810.0,0.3682541]
[1754405311882,0.177289,112820.0,112810.0,0.3682541]
[1754405312177,0.5865559,112830.0,112820.0,0.3682384]
[1754405312972,0.5865559,112830.0,112820.0,0.19096]
[1754405313179,0.6803859,112830.0,112820.0,0.19096]
[1754405313378,0.5380759,112830.0,112820.0,0.86648096]
[1754405313574,0.1772784,112820.0,112810.0,0.3628]
[1754405313778,0.7357584,112820.0,112810.0,0.002]
[1754405313979,0.7367584,112820.0,112810.0,0.672]
[1754405314178,0.7367584,112820.0,112810.0,0.004]
[1754405314386,0.7367584,112820.0,112810.0,0.7594]
[1754405314773,0.7367584,112820.0,112810.0,0.67192]
[1754405315289,1.23500096,112820.0,112810.0,0.67044]
[1754405315478,0.7367584,112820.0,112810.0,0.67044]
[1754405315681,0.7367584,112820.0,112810.0,0.8144]
[1754405316080,0.7367584,112820.0,112810.0,0.9916941]
[1754405316286,0.5875584,112820.0,112810.0,0.3712541]
[1754405316488,0.5875584,112820.0,112810.0,1.0388141]
[1754405316887,0.5390784,112820.0,112810.0,0.3712541]
[1754405317084,0.001,112820.0,112810.0,1.53029666]
[1754405317389,0.001,112820.0,112810.0,2.37305666]
[1754405318487,0.001,112820.0,112810.0,2.37405666]
[1754405318685,0.001,112820.0,112810.0,2.19677666]
[1754405319384,0.001,112820.0,112810.0,2.39180501]
[1754405319586,0.2437669,112840.0,112830.0,0.3682226]
[1754405319783,0.1772469,112840.0,112830.0,1.53370516]
[1754405319976,0.3099624,112850.0,112840.0,0.3682069]
[1754405320286,0.08424,112850.0,112840.0,0.5454389]
[1754405320588,0.08424,112850.0,112840.0,1.8730389]
[1754405321290,0.22568,112870.0,112860.0,0.3211754]
[1754405321496,0.22568,112870.0,112860.0,1.3490154]
[1754405321787,0.2256797,112870.0,112860.0,1.3490154]
[1754405321983,0.5864797,112870.0,112860.0,0.811]
[1754405322288,0.2256797,112870.0,112860.0,0.9882154]
[1754405322481,0.2256797,112870.0,112860.0,1.84725796]
[1754405322677,0.2657903,112880.0,112870.0,0.1771997]
[1754405322882,0.3142703,112880.0,112870.0,0.3211597]
[1754405323081,0.2256738,112880.0,112870.0,0.3211597]
[1754405323276,0.14776,112890.0,112880.0,0.321144]
[1754405323483,0.09928,112890.0,112880.0,0.987704]
[1754405323687,0.09928,112890.0,112880.0,1.348504]
[1754405323883,0.09928,112890.0,112880.0,2.574224]
[1754405324084,0.09928,112890.0,112880.0,3.051392]
[1754405324478,0.09928,112890.0,112880.0,3.0702322]
[1754405324683,0.10428,112890.0,112880.0,3.0712322]
[1754405325487,0.10428,112890.0,112880.0,3.0742322]
[1754405325488,0.10228,112890.0,112880.0,3.0742322]
[1754405325686,0.003,112890.0,112880.0,3.0742322]
[1754405325887,0.06028,112920.0,112910.0,0.3210969]
[1754405326085,0.06028,112920.0,112910.0,1.3480969]
[1754405326383,0.06028,112920.0,112910.0,0.6818969]
[1754405326590,0.10876,112920.0,112910.0,1.3479769]
[1754405327482,0.06028,112920.0,112910.0,1.3479769]
[1754405328078,0.5932569,112950.0,112940.0,0.1770898]
[1754405328284,0.756302,112950.0,112940.0,0.9871298]
[1754405328691,0.82769124,112950.0,112940.0,0.66608]
[1754405328892,0.82769124,112950.0,112940.0,0.8431698]
[1754405329387,0.82769124,112950.0,112940.0,0.9306498]
[1754405329592,0.82769124,112950.0,112940.0,0.9871298]
[1754405329789,0.80694334,112950.0,112940.0,0.9871298]
[1754405329986,0.82767099,112950.0,112940.0,0.9871298]
[1754405330184,0.3608,112970.0,112940.0,2.42948]
[1754405330389,0.02070982,112970.0,112960.0,0.9429232]
[1754405330594,0.09383,112980.0,112970.0,0.2655625]
[1754405330787,0.09383,112980.0,112970.0,0.5821027]
[1754405331089,0.14231,112980.0,112970.0,0.5821027]
[1754405331281,0.19768,112980.0,112970.0,1.08034526]
[1754405331488,0.19768,112980.0,112970.0,0.72111526]
[1754405331687,0.19768,112980.0,112970.0,0.71954526]
[1754405331882,0.1770428,112970.0,112960.0,0.2238894]
[1754405332087,0.7288628,112970.0,112960.0,0.8427671]
[1754405332288,0.3680784,112960.0,112950.0,0.1770603]
[1754405332586,0.2213377,112960.0,112950.0,0.8427941]
[1754405332792,0.5821377,112960.0,112950.0,0.8427941]
[1754405333293,0.4123577,112960.0,112950.0,0.8427941]
[1754405333495,0.3638,112980.0,112950.0,0.8427941]
[1754405333496,0.2242904,112980.0,112970.0,0.1770428]
[1754405333791,0.0489,112980.0,112970.0,1.03866536]
[1754405333988,0.3663709,113000.0,112990.0,0.1785815]
[1754405334189,0.3221216,113000.0,112990.0,1.70435406]
[1754405334390,0.6829216,113000.0,112990.0,0.8453115]
[1754405334589,0.3109471,112980.0,112970.0,0.2248744]
[1754405334792,0.3710471,112980.0,112970.0,0.8473357]
[1754405334991,0.7318471,112980.0,112970.0,0.66772]
[1754405335392,0.7288471,112980.0,112970.0,0.6666]
[1754405335589,1.0288471,112980.0,112970.0,0.6656]
[1754405335989,0.7288471,112980.0,112970.0,0.6656]
[1754405336384,0.3109941,112950.0,112940.0,0.2681985]
[1754405336584,0.3680941,112950.0,112940.0,0.9337985]
[1754405336789,0.3680941,112950.0,112940.0,0.00157]
[1754405336989,0.3681097,112940.0,112930.0,0.64583225]
[1754405337288,0.0459,112940.0,112930.0,1.81068481]
[1754405337493,0.2229898,112940.0,112930.0,1.81068481]
[1754405337689,0.3110098,112940.0,112930.0,0.95164225]
[1754405337893,0.3681098,112940.0,112930.0,0.95063225]
[1754405338198,0.3691098,112940.0,112930.0,0.95063225]
[1754405338587,0.3691098,112940.0,112930.0,0.95164225]
[1754405338791,0.3691098,112940.0,112930.0,0.95160225]
[1754405338986,0.3691098,112940.0,112930.0,0.28604225]
[1754405339196,0.3691098,112940.0,112930.0,0.95156225]
[1754405339391,0.3691098,112940.0,112930.0,0.28604225]
[1754405339593,0.001,112940.0,112930.0,1.81060481]
[1754405340399,0.4123374,112970.0,112960.0,0.1786384]
[1754405340594,0.0459,112970.0,112960.0,1.34240096]
[1754405340800,0.4565527,112990.0,112980.0,0.1775971]
[1754405341113,0.3680445,112990.0,112980.0,0.8441271]